bitfinex-derivatives/quotes_SOLF0:USTF0_20241012
["timestamp","ask_amount","ask_price","bid_price","bid_amount"]
[1728759103565,11.8119,146.56,146.53,11.8123]
[1728759106272,3.4122,146.54,146.45,0.12502]
[1728759106572,8.4,146.54,146.51,8.4]
[1728759106967,3.4125,146.53,146.51,11.8128]
[1728759107164,8.4,146.54,146.51,11.8128]
[1728759107468,8.4,146.55,146.51,11.8128]
[1728759107870,3.4122,146.54,146.51,11.8128]
[1728759116976,11.8125,146.53,146.5,3.413]
[1728759119087,3.4125,146.53,146.51,3.4128]
[1728759119985,11.8123,146.54,146.51,3.4128]
[1728759123885,11.8121,146.55,146.52,3.4125]
[1728759138698,0.12502,146.57,146.52,11.8124]
[1728759138902,8.52502,146.57,146.52,8.4]
[1728759139102,8.52502,146.57,146.51,8.4]
[1728759139304,3.412,146.55,146.52,3.4124]
[1728759140204,0.12502,146.57,146.52,8.4]
[1728759140503,8.52502,146.57,146.52,8.4]
[1728759142505,3.4118,146.56,146.53,3.4123]
[1728759142707,11.8118,146.56,146.53,3.4123]
[1728759143307,8.4,146.56,146.53,3.4123]
[1728759143509,3.4119,146.55,146.53,3.4123]
[1728759150614,0.12502,146.57,146.53,8.4]
[1728759150917,0.12502,146.57,146.55,8.4]
[1728759151416,0.12502,146.57,146.55,11.8118]
[1728759151818,3.53652,146.57,146.55,11.8118]
[1728759152316,0.12502,146.57,146.55,11.8118]
[1728759153022,0.12502,146.57,146.56,11.8117]
[1728759156219,0.12502,146.57,146.56,3.4117]
[1728759156416,0.12502,146.57,146.55,11.8118]
[1728759156616,3.53662,146.57,146.54,8.4]
[1728759158020,3.53662,146.57,146.54,11.812]
[1728759159827,0.12502,146.57,146.55,3.4119]
[1728759164832,3.53652,146.57,146.54,11.812]
[1728759167432,3.53652,146.57,146.54,3.412]
[1728759173539,3.53652,146.57,146.54,11.812]
[1728759182549,0.12502,146.57,146.54,8.4]
[1728759182752,0.12502,146.57,146.55,3.4118]
[1728759193859,0.12502,146.57,146.55,11.8118]
[1728759197767,0.12502,146.57,146.56,3.4117]
[1728759197966,0.12502,146.57,146.56,11.8117]
[1728759211174,0.12502,146.57,146.56,3.4117]
[1728759211473,0.12502,146.57,146.56,11.8117]
[1728759222980,0.12502,146.57,146.56,3.4117]
[1728759223173,0.12502,146.57,146.56,11.8117]
[1728759246805,3.53652,146.57,146.55,3.4119]
[1728759247102,0.12502,146.57,146.55,3.4119]
[1728759247306,0.12502,146.57,146.55,11.8119]
[1728759248002,0.12502,146.57,146.56,3.4117]
[1728759248196,0.12502,146.57,146.56,11.8117]
[1728759255007,0.12502,146.57,146.56,3.4117]
[1728759260010,0.12502,146.57,146.55,11.8118]
[1728759260412,0.12502,146.57,146.55,8.4]
[1728759261411,0.12502,146.57,146.56,3.4117]
[1728759263416,0.12502,146.57,146.56,11.8117]
[1728759275120,0.12502,146.57,146.56,3.4117]
[1728759275312,0.12502,146.57,146.53,3.4123]
[1728759275618,8.52502,146.57,146.53,3.4123]
[1728759276011,8.4,146.56,146.52,3.4125]
[1728759276212,8.4,146.55,146.47,1.3048]
[1728759276416,8.4,146.55,146.5,8.4]
[1728759277215,3.4122,146.54,146.51,3.4128]
[1728759277917,3.4122,146.54,146.51,11.8128]
[1728759291228,3.4122,146.54,146.51,8.4]
[1728759291432,3.4122,146.54,146.52,3.4126]
[1728759299134,3.4127,146.52,146.49,3.4132]
[1728759299338,8.4,146.54,146.49,8.4]
[1728759299738,3.4124,146.53,146.5,3.4129]
[1728759300334,11.8127,146.52,146.49,3.4132]
[1728759300539,8.4,146.51,146.47,9.7048]
[1728759300939,11.813,146.51,146.48,3.4134]
[1728759302841,11.813,146.51,146.48,11.8134]
[1728759303041,11.813,146.51,146.49,3.4133]
[1728759303344,3.413,146.51,146.49,3.4133]
[1728759303738,83.48214344,146.57,146.49,8.4]
[1728759304040,83.48214344,146.57,146.5,11.8131]
[1728759304041,3.4125,146.53,146.5,11.8131]
[1728759304235,8.4,146.54,146.5,11.8131]
[1728759304435,3.4125,146.53,146.5,11.8131]
[1728759304844,3.4125,146.53,146.5,3.4131]
[1728759313343,8.4,146.54,146.5,3.4131]
[1728759313542,8.4,146.51,146.45,0.12502]
[1728759313849,8.4,146.5,146.45,8.52502]
[1728759314037,3.4134,146.49,146.46,3.4139]
[1728759316141,8.4,146.51,146.47,11.8138]
[1728759316345,3.4132,146.5,146.47,11.8138]
[1728759317347,3.4132,146.5,146.48,3.4135]
[1728759319449,3.4132,146.5,146.47,11.8137]
[1728759321554,3.4132,146.5,146.47,8.4]
[1728759321753,3.4132,146.5,146.48,3.4135]
[1728759322553,11.8132,146.5,146.47,3.4137]
[1728759323151,8.4,146.5,146.45,0.12502]
[1728759323449,3.4136,146.48,146.45,0.12502]
[1728759324454,3.4136,146.48,146.46,3.414]
[1728759326257,11.8134,146.49,146.46,3.414]
[1728759327252,3.4128,146.52,146.49,3.4132]
[1728759327456,3.4128,146.52,146.49,11.8132]
[1728759327957,3.4129,146.51,146.48,11.8135]
[1728759328455,3.4131,146.5,146.48,3.4135]
[1728759329159,3.4131,146.5,146.47,3.4137]
[1728759329459,8.4,146.49,146.46,1.3478]
[1728759329959,8.4,146.49,146.45,0.12502]
[1728759330150,8.4,146.47,146.45,3.53912]
[1728759330352,8.4,146.47,146.45,0.12502]
[1728759331260,11.8138,146.47,146.45,0.12502]
[1728759331651,8.4,146.48,146.45,0.12502]
[1728759331855,11.8136,146.48,146.45,3.53912]
[1728759332159,2.7656,146.52,146.45,8.52502]
[1728759332353,2.7656,146.52,146.47,8.4]
[1728759332557,8.4,146.51,146.47,8.4]
[1728759333165,3.4132,146.5,146.47,8.4]
[1728759333856,11.8129,146.51,146.47,8.4]
[1728759334062,8.4,146.51,146.47,8.4]
[1728759334462,3.4131,146.5,146.47,8.4]
[1728759335863,3.4131,146.5,146.46,8.4]
[1728759336060,8.4,146.51,146.46,8.4]
[1728759336260,3.4133,146.49,146.46,8.4]
[1728759344557,3.4137,146.48,146.45,11.93912]
[1728759354874,8.4,146.48,146.45,0.12502]
[1728759355079,3.4139,146.47,146.45,0.12502]
[1728759357773,3.4139,146.47,146.45,3.53922]
[1728759357970,3.4137,146.48,146.45,3.53922]
[1728759360681,8.4,146.49,146.45,0.12502]
[1728759360882,3.414,146.47,146.45,0.12502]
[1728759363182,3.414,146.47,146.45,3.53932]
[1728759363790,3.414,146.47,146.45,11.93932]
[1728759370286,3.4137,146.48,146.45,11.93932]
[1728759370687,3.4137,146.48,146.45,8.52502]
[1728759370888,3.4137,146.48,146.46,3.414]
[1728759371487,3.4137,146.48,146.46,11.814]
[1728759377688,4.84606323,146.53,146.45,0.12502]
[1728759377998,3.4128,146.52,146.49,11.8133]
[1728759380184,1.3699,146.56,146.49,8.4]
[1728759380390,3.4123,146.54,146.52,8.4]
[1728759380608,8.4,146.56,146.52,8.4]
[1728759381300,0.12502,146.57,146.53,11.8122]
[1728759382393,3.4117,146.56,146.53,11.8122]
[1728759383692,8.52502,146.57,146.53,11.8122]
[1728759383893,3.53652,146.57,146.54,8.4]
[1728759385402,8.52502,146.57,146.54,8.4]
[1728759385702,8.4,146.55,146.51,11.8128]
[1728759385999,8.4,146.55,146.51,8.4]
[1728759386403,11.8121,146.55,146.52,3.4126]
[1728759386604,11.8121,146.55,146.51,8.4]
[1728759388505,11.8121,146.55,146.51,11.8127]
[1728759390210,11.8121,146.55,146.51,8.4]
[1728759390414,11.8121,146.55,146.52,3.4126]
[1728759390707,3.4121,146.55,146.52,3.4126]
[1728759392812,3.4121,146.55,146.54,8.4]
[1728759400909,0.12502,146.57,146.54,8.4]
[1728759401108,3.4118,146.56,146.54,11.8122]
[1728759401305,3.4118,146.56,146.54,8.4]
[1728759411619,3.4117,146.56,146.54,8.4]
[1728759412320,8.4,146.55,146.47,2.7199]
[1728759412619,8.4,146.54,146.5,8.4]
[1728759412823,1.44512,146.57,146.5,11.8129]
[1728759413011,8.4,146.55,146.51,8.4]
[1728759413723,3.4122,146.54,146.51,8.4]
[1728759414919,3.4122,146.54,146.52,8.4]
[1728759415727,3.4122,146.54,146.51,3.4127]
[1728759415728,11.8121,146.55,146.51,3.4127]
[1728759415924,8.4,146.55,146.51,3.4127]
[1728759416327,3.4124,146.54,146.5,11.8129]
[1728759418732,3.4124,146.54,146.51,8.4]
[1728759420432,3.4124,146.54,146.51,11.8128]
[1728759439051,3.4124,146.54,146.51,3.4128]
[1728759441851,3.4124,146.54,146.51,11.8128]
[1728759444650,8.4,146.55,146.51,8.4]
[1728759444853,3.4118,146.56,146.53,11.8123]
[1728759446353,8.52502,146.57,146.53,8.4]
[1728759446559,0.12502,146.57,146.56,8.4]
[1728759453560,0.12502,146.57,146.55,11.8118]
[1728759454661,8.52502,146.57,146.52,11.0781]
[1728759456470,3.4118,146.56,146.53,3.4124]
[1728759457368,3.4118,146.56,146.54,8.4]
[1728759458767,3.53652,146.57,146.55,8.4]
[1728759459571,3.53652,146.57,146.54,11.812]
[1728759464667,0.12502,146.57,146.56,11.8117]
[1728759464872,0.12502,146.57,146.56,8.4]
[1728759468674,0.12502,146.57,146.56,11.8117]
[1728759472684,0.12502,146.57,146.56,8.4]
[1728759473179,0.12502,146.57,146.55,3.4118]
[1728759473486,0.12502,146.57,146.56,8.4]
[1728759478289,8.52502,146.57,146.52,1.3141]
[1728759478489,8.4,146.56,146.5,8.4]
[1728759479682,3.4121,146.55,146.52,3.4125]
[1728759483390,3.4121,146.55,146.52,11.8125]
[1728759493497,8.4,146.56,146.52,11.8125]
[1728759493704,11.93662,146.57,146.53,8.4]
[1728759494902,11.93662,146.57,146.54,3.4121]
[1728759496004,8.4,146.56,146.54,3.4121]
[1728759496708,8.4,146.56,146.52,8.4]
[1728759496910,8.4,146.56,146.53,3.4123]
[1728759497708,11.8117,146.56,146.53,3.4123]
[1728759499699,8.52502,146.57,146.55,3.4119]
[1728759499903,8.52502,146.57,146.53,8.4]
[1728759501511,0.12502,146.57,146.54,8.4]
[1728759501706,0.12502,146.57,146.55,8.4]
[1728759502813,0.12502,146.57,146.56,3.4117]
[1728759503712,0.12502,146.57,146.55,11.8118]
[1728759515616,0.12502,146.57,146.56,8.4]
[1728759525722,0.12502,146.57,146.48,4.79727035]
[1728759526022,3.53652,146.57,146.54,8.4]
[1728759526823,3.53652,146.57,146.54,11.8121]
[1728759534627,0.12502,146.57,146.48,4.79727035]
[1728759534823,8.4,146.56,146.48,4.79727035]
[1728759535029,0.12502,146.57,146.51,8.4]
[1728759535030,8.4,146.55,146.51,8.4]
[1728759535323,3.4123,146.54,146.51,11.8127]
[1728759538223,3.4123,146.54,146.52,3.4126]
[1728759544534,3.4124,146.53,146.51,8.4]
[1728759544733,8.4,146.55,146.48,1.3776]
[1728759544931,8.4,146.55,146.5,8.4]
[1728759545432,8.4,146.55,146.5,11.8131]
[1728759546427,3.4125,146.53,146.5,11.8131]
[1728759552333,3.4121,146.55,146.52,11.8126]
[1728759553742,3.4121,146.55,146.52,3.4126]
[1728759554243,3.4122,146.54,146.51,11.8128]
[1728759558550,3.4121,146.55,146.51,11.8128]
[1728759558943,3.4127,146.52,146.49,3.4132]
[1728759559145,8.4,146.53,146.49,8.4]
[1728759559344,8.4,146.54,146.49,8.4]
[1728759559652,11.8123,146.54,146.5,11.8129]
[1728759560254,0.12502,146.57,146.5,8.4]
[1728759560453,8.4,146.56,146.52,11.8125]
[1728759560958,3.4121,146.55,146.52,11.8125]
[1728759561461,3.4121,146.55,146.52,8.4]
[1728759563460,3.4122,146.54,146.52,8.4]
[1728759563657,3.4122,146.54,146.51,11.8127]
[1728759571464,3.4124,146.53,146.5,3.4131]
[1728759571665,8.4,146.54,146.49,8.4]
[1728759572065,3.4125,146.53,146.49,11.8133]
[1728759573963,8.4,146.54,146.49,11.8133]
[1728759573964,3.4127,146.52,146.49,11.8133]
[1728759574158,3.4127,146.52,146.49,3.4133]
[1728759574363,3.4127,146.52,146.49,11.8133]
[1728759578272,3.4127,146.52,146.49,8.4]
[1728759578473,3.4127,146.52,146.5,3.4131]
[1728759578874,3.4127,146.52,146.5,11.8131]
[1728759581970,3.4127,146.52,146.49,3.4132]
[1728759587879,3.4127,146.52,146.5,3.413]
[1728759589476,3.4127,146.52,146.5,11.813]
[1728759589779,3.4125,146.53,146.5,11.813]
[1728759589989,8.4,146.51,146.47,3.4138]
[1728759590182,8.4,146.49,146.45,8.52502]
[1728759590383,11.8135,146.49,146.45,8.52502]
[1728759591380,11.8135,146.49,146.47,3.4138]
[1728759591688,3.32923665,146.52,146.47,3.4138]
[1728759591689,3.4132,146.5,146.47,3.4138]
[1728759592184,3.4132,146.5,146.48,3.4135]
[1728759597986,8.4,146.51,146.48,3.4135]
[1728759598192,8.4,146.51,146.49,3.4133]
[1728759599388,11.8129,146.51,146.49,3.4133]
[1728759600292,8.4,146.5,146.46,1.4037]
[1728759600592,11.8131,146.5,146.47,3.4136]
[1728759601891,11.8131,146.5,146.46,9.8037]
[1728759602089,11.8131,146.5,146.48,3.4135]
[1728759602393,11.813,146.51,146.48,3.4135]
[1728759603096,1.383,146.55,146.48,3.4135]
[1728759603299,1.383,146.55,146.46,1.4037]
[1728759603498,8.4,146.51,146.46,9.8037]
[1728759603998,11.8129,146.51,146.48,3.4133]
[1728759604501,11.8129,146.51,146.47,8.4]
[1728759605399,11.8129,146.51,146.49,3.4133]
[1728759605605,11.8132,146.5,146.45,0.12502]
[1728759605899,11.8132,146.5,146.45,8.52502]
[1728759606392,11.8132,146.5,146.47,3.4136]
[1728759607499,11.8132,146.5,146.45,8.52502]
[1728759607797,11.8132,146.5,146.48,3.4135]
[1728759610605,8.4,146.5,146.48,3.4135]
[1728759613104,11.8133,146.5,146.47,3.4137]
[1728759613505,8.4,146.49,146.45,0.12502]
[1728759613695,11.8137,146.48,146.45,3.53912]
[1728759618513,11.8137,146.48,146.46,3.414]
[1728759619405,1.3961,146.54,146.47,8.4]
[1728759619606,8.4,146.53,146.49,8.4]
[1728759619911,8.4,146.52,146.49,3.4132]
[1728759620605,8.4,146.52,146.49,3.4133]
[1728759621411,8.4,146.52,146.48,8.4]
[1728759621715,8.4,146.52,146.5,3.413]
[1728759621915,8.4,146.52,146.48,8.4]
[1728759622107,3.4125,146.53,146.49,3.4132]
[1728759622308,8.4,146.52,146.49,3.4132]
[1728759623616,11.8127,146.52,146.49,3.4132]
[1728759625412,8.4,146.5,146.46,8.4]
[1728759625613,11.8131,146.5,146.47,3.4136]
[1728759626614,8.4,146.48,146.46,3.414]
[1728759626817,8.4,146.47,146.45,0.12502]
[1728759627118,11.8138,146.47,146.45,0.12502]
[1728759628822,3.4138,146.47,146.45,0.12502]
[1728759629019,8.4,146.46,146.45,0.12502]
[1728759630023,8.4,146.46,146.45,3.53932]
[1728759632728,8.4,146.47,146.45,3.53932]
[1728759633028,8.4,146.49,146.45,0.12502]
[1728759633218,11.8134,146.49,146.46,3.414]
[1728759633624,3.4134,146.49,146.46,3.4139]
[1728759633826,11.8134,146.49,146.46,3.4139]
[1728759634821,11.8134,146.49,146.45,0.12502]
[1728759635028,3.4134,146.49,146.47,3.4137]
[1728759635624,11.8132,146.5,146.47,3.4137]
[1728759635824,8.4,146.5,146.45,8.52502]
[1728759636026,8.4,146.5,146.48,3.4135]
[1728759637323,11.8131,146.5,146.48,3.4135]
[1728759638021,8.4,146.5,146.48,3.4135]
[1728759638830,11.813,146.51,146.48,3.4135]
[1728759639533,6.89900745,146.52,146.49,3.4132]
[1728759639727,11.8127,146.52,146.49,3.4132]
[1728759640228,8.4,146.52,146.5,3.413]
[1728759640428,11.8126,146.53,146.5,3.413]
[1728759641826,8.4,146.52,146.5,3.413]
[1728759642529,11.8126,146.52,146.5,3.413]
[1728759646831,8.4,146.52,146.5,3.413]
[1728759647629,11.8125,146.53,146.5,3.413]
[1728759647937,11.8122,146.54,146.51,3.4127]
[1728759648138,11.8122,146.54,146.5,8.4]
[1728759648938,11.8122,146.54,146.51,3.4127]
[1728759649137,11.812,146.55,146.51,8.4]
[1728759649642,86.77902271,146.56,146.52,8.4]
[1728759649843,91.76722271,146.56,146.51,8.4]
[1728759650227,3.4119,146.55,146.52,3.4124]
[1728759650430,3.4119,146.55,146.51,8.4]
[1728759650834,95.17902271,146.56,146.53,3.4124]
[1728759652635,83.36722271,146.56,146.52,8.4]
[1728759652841,83.36722271,146.56,146.53,3.4123]
[1728759653231,86.77892271,146.56,146.53,3.4123]
[1728759653529,83.36722271,146.56,146.54,3.4121]
[1728759654943,3.53662,146.57,146.54,3.4121]
[1728759656642,0.12502,146.57,146.54,3.4121]
[1728759657140,8.52502,146.57,146.54,3.4121]
[1728759657540,0.12502,146.57,146.56,3.4117]
[1728759658634,0.12502,146.57,146.56,11.8117]
[1728759666358,3.4104,146.62,146.59,3.4108]
[1728759666559,3.4106,146.61,146.51,0.12502]
[1728759666863,0.12502,146.63,146.51,0.12502]
[1728759667159,3.4114,146.58,146.55,8.4]
[1728759667354,8.4,146.59,146.55,8.4]
[1728759667554,8.4,146.59,146.56,3.4116]
[1728759667763,11.8112,146.59,146.56,3.4116]
[1728759668057,8.4,146.59,146.56,3.4116]
[1728759668958,2.6319,146.62,146.56,8.4]
[1728759669161,11.0319,146.62,146.57,8.4]
[1728759669563,3.4107,146.61,146.58,3.4111]
[1728759670163,3.4108,146.6,146.58,3.4111]
[1728759670360,11.0319,146.62,146.58,3.4111]
[1728759670560,2.6319,146.62,146.58,11.8111]
[1728759670858,3.4106,146.61,146.58,3.4111]
[1728759673364,3.4106,146.61,146.58,11.8111]
[1728759674161,11.8106,146.61,146.58,11.8111]
[1728759675563,8.4,146.61,146.58,3.4111]
[1728759675866,11.811,146.6,146.56,8.4]
[1728759676067,8.4,146.6,146.56,8.4]
[1728759677070,11.8109,146.6,146.57,3.4115]
[1728759678872,3.4111,146.59,146.56,11.8116]
[1728759680163,3.4116,146.57,146.55,3.4119]
[1728759680364,8.4,146.59,146.55,11.8119]
[1728759681364,3.4115,146.57,146.55,11.8119]
[1728759681569,8.4,146.59,146.55,11.8119]
[1728759681768,3.34129366,146.61,146.54,3.4121]
[1728759681769,8.4,146.58,146.54,3.4121]
[1728759681970,3.4117,146.56,146.52,9.816]
[1728759682476,3.4117,146.56,146.53,3.4122]
[1728759684069,3.4117,146.56,146.54,3.4121]
[1728759685772,8.4,146.58,146.54,11.8121]
[1728759685971,3.4116,146.57,146.54,11.8121]
[1728759689467,3.4116,146.57,146.54,3.4121]
[1728759689877,3.4116,146.57,146.53,8.4]
[1728759690078,3.4116,146.57,146.54,3.4121]
[1728759692175,8.4,146.58,146.53,8.4]
[1728759692378,11.8118,146.56,146.53,3.4123]
[1728759693473,11.8118,146.56,146.51,8.52502]
[1728759693677,8.4,146.56,146.54,3.4121]
[1728759695475,8.4,146.56,146.53,3.4124]
[1728759695476,11.8119,146.56,146.53,3.4124]
[1728759697172,8.4,146.55,146.53,3.4124]
[1728759697379,6.05078498,146.6,146.51,3.53782]
[1728759697380,11.8124,146.54,146.51,3.53782]
[1728759697576,8.4,146.52,146.51,3.53782]
[1728759700173,8.4,146.52,146.51,0.12502]
[1728759700373,11.8126,146.52,146.51,0.12502]
[1728759702879,8.4,146.52,146.51,0.12502]
[1728759703077,11.8124,146.53,146.51,0.12502]
[1728759707374,3.4124,146.53,146.51,0.12502]
[1728759707686,11.8123,146.54,146.51,3.53772]
[1728759710991,11.8124,146.53,146.51,3.53772]
[1728759711583,11.8124,146.53,146.51,0.12502]
[1728759714992,6.05078498,146.6,146.51,0.12502]
[1728759715285,11.812,146.55,146.52,3.4125]
[1728759715486,11.812,146.55,146.51,0.12502]
[1728759715685,11.812,146.55,146.52,3.4124]
[1728759720192,11.812,146.55,146.53,3.4124]
[1728759720590,8.4,146.55,146.51,0.12502]
[1728759720791,6.05078498,146.6,146.55,3.4118]
[1728759720996,8.4,146.56,146.55,3.4118]
[1728759721699,3.4111,146.59,146.56,3.4116]
[1728759721995,8.4,146.57,146.53,8.4]
[1728759722589,8.4,146.57,146.55,3.4118]
[1728759723390,8.4,146.57,146.53,8.4]
[1728759723391,2.6698,146.6,146.56,3.4117]
[1728759723592,11.8111,146.59,146.54,8.4]
[1728759724296,8.4,146.59,146.54,8.4]
[1728759724597,8.4,146.59,146.57,3.4113]
[1728759725990,8.4,146.6,146.58,3.4112]
[1728759728901,11.8104,146.62,146.59,3.411]
[1728759729805,3.4104,146.62,146.59,3.411]
[1728759732804,11.93522,146.63,146.6,3.4106]
[1728759733205,8.52502,146.63,146.58,8.4]
[1728759734113,8.4,146.62,146.57,8.4]
[1728759734411,11.8104,146.62,146.59,3.4109]
[1728759738903,3.4104,146.62,146.59,3.4109]
[1728759739106,3.53522,146.63,146.6,3.4107]
[1728759739305,3.53522,146.63,146.59,8.4]
[1728759739711,0.12502,146.63,146.61,3.4105]
[1728759740011,0.12502,146.63,146.59,8.4]
[1728759740406,3.53512,146.63,146.6,3.4106]
[1728759740709,0.12502,146.63,146.59,8.4]
[1728759741209,0.12502,146.63,146.61,3.4104]
[1728759742514,0.12502,146.63,146.61,11.8104]
[1728759745523,0.12502,146.63,146.62,11.8103]
[1728759746417,1e-08,146.63,146.62,11.8103]
[1728759754119,1e-08,146.63,146.62,3.4103]
[1728759754429,1e-08,146.63,146.62,11.8103]
[1728759760034,3.409,146.68,146.66,3.4093]
[1728759760335,3.409,146.68,146.66,11.8093]
[1728759762134,3.409,146.68,146.66,8.4]
[1728759762529,3.409,146.68,146.65,11.8095]
[1728759763634,8.52502,146.69,146.65,8.4]
[1728759763834,3.4092,146.67,146.65,8.4]
[1728759770532,3.4094,146.66,146.65,8.4]
[1728759775239,3.4098,146.65,146.61,3.4103]
[1728759775434,8.4,146.67,146.61,3.4103]
[1728759775634,8.4,146.66,146.57,4.18022]
[1728759775830,8.4,146.66,146.61,8.4]
[1728759776034,8.4,146.65,146.61,8.4]
[1728759776435,8.4,146.65,146.59,8.4]
[1728759776636,8.4,146.62,146.57,1.44892]
[1728759776939,3.4106,146.61,146.57,9.84892]
[1728759777336,8.4,146.61,146.57,3.53642]
[1728759777530,11.8107,146.61,146.57,0.12502]
[1728759778641,3.4108,146.6,146.58,3.4111]
[1728759779941,3.4108,146.6,146.57,3.53642]
[1728759780435,3.4111,146.59,146.57,0.12502]
[1728759780642,8.4,146.61,146.57,0.12502]
[1728759781445,3.4108,146.6,146.57,3.53632]
[1728759786538,8.4,146.6,146.57,0.12502]
[1728759786851,8.4,146.58,146.57,0.12502]
[1728759787041,8.4,146.58,146.57,1e-08]
[1728759787241,11.8112,146.58,146.57,1e-08]
[1728759787740,13.1851,146.58,146.57,1e-08]
[1728759797446,11.8112,146.58,146.57,1e-08]
[1728759808266,8.4,146.58,146.57,1e-08]
[1728759808465,11.8111,146.59,146.57,1e-08]
[1728759809357,1.46351999,146.63,146.57,8.40000001]
[1728759809358,0.12501999,146.63,146.57,8.40000001]
[1728759809559,8.4,146.61,146.57,8.40000001]
[1728759810060,11.8105,146.61,146.58,3.4111]
[1728759813060,8.4,146.6,146.58,3.4111]
[1728759816579,11.811,146.59,146.57,1e-08]
[1728759816778,8.4,146.58,146.57,1e-08]
[1728759817171,11.8112,146.58,146.57,1e-08]
[1728759822884,3.4112,146.58,146.57,1e-08]
[1728759823085,11.8112,146.58,146.57,1e-08]
[1728759842305,3.4112,146.58,146.57,1e-08]
[1728759842502,3.4111,146.59,146.57,1e-08]
[1728759842706,8.4,146.58,146.57,1e-08]
[1728759843505,0.12501999,146.63,146.57,1e-08]
[1728759843709,8.4,146.6,146.57,1e-08]
[1728759844508,3.411,146.59,146.57,1e-08]
[1728759845310,11.811,146.59,146.57,1e-08]
[1728759845805,3.4106,146.61,146.58,3.4112]
[1728759846011,11.8106,146.61,146.58,3.4112]
[1728759846709,0.12501999,146.63,146.58,8.4]
[1728759846907,0.12501999,146.63,146.57,1e-08]
[1728759846908,0.12501999,146.63,146.6,8.4]
[1728759847507,0.12501999,146.63,146.61,3.4104]
[1728759847916,0.12501999,146.63,146.61,8.4]
[1728759848218,0.12501999,146.63,146.62,3.4103]
[1728759849910,0.12501999,146.63,146.61,3.4105]
[1728759855917,0.12501999,146.63,146.61,11.8105]
[1728759856418,0.12501999,146.63,146.62,8.4]
[1728759856622,0.12501999,146.63,146.62,11.8103]
[1728759858014,23.70020211,146.76,146.62,8.4]
[1728759858219,3.409,146.68,146.65,11.8095]
[1728759858821,3.53392,146.69,146.66,3.4093]
[1728759860520,11.93392,146.69,146.66,3.4093]
[1728759862319,3.53392,146.69,146.66,11.8093]
[1728759869534,3.4089,146.68,146.66,8.4]
[1728759889145,3.4089,146.68,146.65,3.4095]
[1728759889146,3.4091,146.67,146.64,11.8097]
[1728759900658,3.4091,146.67,146.65,3.4096]
[1728759901246,3.4089,146.68,146.66,11.8092]
[1728759904056,0.12502,146.69,146.66,11.8092]
[1728759904357,3.53382,146.69,146.66,11.8092]
[1728759904560,0.12502,146.69,146.68,8.4]
[1728759905355,0.12502,146.69,146.68,11.8089]
[1728759914075,8.52502,146.69,146.65,1.4079]
[1728759914361,8.4,146.67,146.63,8.4]
[1728759915157,3.4098,146.65,146.62,3.4102]
[1728759915355,8.4,146.64,146.6,9.8114]
[1728759915559,8.4,146.63,146.6,9.8114]
[1728759915755,11.81,146.64,146.6,13.222]
[1728759915961,11.81,146.64,146.61,8.4]